[Event "Polish Youth G18 Championship 2023"]
[Site "Jastrzebia Gora"]
[Date "2023.03.13"]
[Round "3.15"]
[White "Czerwinska, Oliwia"]
[Black "Obrochta, Lena"]
[Result "1/2-1/2"]
[ECO "B40"]
[WhiteElo "1369"]
[BlackElo "1673"]
[Annotator "NA RC COMBH"]
[PlyCount "99"]
[EventDate "2023.03.11"]
[EventType "swiss"]
[EventCountry "POL"]
[SourceTitle "playchess.com"]
[Source "ChessBase"]
[SourceQuality "1"]
[TimeControl "40/5400+30:1800+30"]

1. e4 c5 2. Nf3 e6 3. c3 d5 4. exd5 exd5 5. d4 Nc6 6. Be3 cxd4 7. Nxd4 Nf6 8. h3 Bd6 9. Bd3 O-O 10. O-O Bd7 11. Nf5 Bb8 12. Nd2 Qc8 13. g4 Re8 14. Bd4 Nxd4 15. cxd4 Ne4 16. Rc1 Qd8 17. Bxe4 dxe4 18. Ne3 Qf6 19. Kg2 Qxd4 20. Ndc4 Qxd1 21. Rfxd1 Bc6 22. Na5 Be5 23. Nxc6 bxc6 24. b3 Rac8 25. Rc4 Bf6 26. Rd7 a5 27. Ra7 Bd8 28. Nf5 Re6 29. Rd7 Kf8 30. Nd6 Rc7 31. Rxc7 Bxc7 32. Nxe4 Ke7 33. Kf3 h6 34. Nc5 Re5 35. Nb7 Kd7 36. Rc5 Rxc5 37. Nxc5+ Kd6 38. Nd3 Kd5 39. Ke2 Ke4 40. f3+ Kd4 41. Kd2 Bd6 42. Nb2 Bb4+ 43. Ke2 Kc3 44. Nc4 Kc2 45. f4 Kc3 46. g5 Kc2 47. Ke3 Bc3 48. Ke2 Bb4 49. Ke3 Bc3 50. Ke4 1/2-1/2

[Event "Polish Youth G18 Championship 2023"]
[Site "Jastrzebia Gora"]
[Date "2023.03.13"]
[Round "3.16"]
[White "Sivickis, Kornelia"]
[Black "Anyz, Monika"]
[Result "0-1"]
[ECO "B39"]
[WhiteElo "1328"]
[BlackElo "1755"]
[Annotator "NA RC COMBH"]
[PlyCount "147"]
[EventDate "2023.03.11"]
[EventType "swiss"]
[EventCountry "POL"]
[SourceTitle "playchess.com"]
[Source "ChessBase"]
[SourceQuality "1"]
[TimeControl "40/5400+30:1800+30"]

1. e4 {[%emt 0:00:03]} c5 {[%emt 0:00:06]} 2. Nf3 {[%emt 0:00:06]} Nc6 {[%emt 0:00:06]} 3. d4 {[%emt 0:00:07]} cxd4 {[%emt 0:00:06]} 4. Nxd4 {[%emt 0:00:10]} g6 {[%emt 0:00:08]} 5. c4 {[%emt 0:00:10]} Nf6 {[%emt 0:00:31]} 6. Nc3 {[%emt 0:00:18]} Bg7 {[%emt 0:00:11]} 7. Be3 {[%emt 0:00:08]} Ng4 {[%emt 0:00:52]} 8. Qxg4 {[%emt 0:00:48]} Nxd4 {[%emt 0:00:10]} 9. Qd1 {[%emt 0:00:18]} Ne6 {[%emt 0:00:10]} 10. Rc1 {[%emt 0:00:09]} Qa5 {[%emt 0:01:09]} 11. a3 {[%emt 0:04:14]} b6 {[%emt 0:02:40]} 12. Be2 {[%emt 0:01:00]} Bb7 {[%emt 0:00:14]} 13. f3 {[%emt 0:00:18]} g5 {[%emt 0:02:14]} 14. Qd2 {[%emt 0:01:57]} h5 {[%emt 0:03:26]} 15. f4 {[%emt 0:14:51]} gxf4 {[%emt 0:06:27]} 16. Bxf4 {[%emt 0:01:46]} Bxc3 {[%emt 0:00:38]} 17. Rxc3 {[%emt 0:01:43]} Bxe4 {[%emt 0:02:06]} 18. Rg1 {[%emt 0:05:07]} Qf5 {[%emt 0:07:09]} 19. g3 {[%emt 0:02:49]} Rg8 {[%emt 0:16:24]} 20. Rf1 {[%emt 0:03:06]} Bg2 {[%emt 0:12:10]} 21. Bd3 {[%emt 0:05:42]} Qh3 {[%emt 0:01:11]} 22. Rf2 {[%emt 0:04:26]} Bc6 {[%emt 0:04:26]} 23. Be5 {[%emt 0:06:24]} Qg4 {[%emt 0:03:37]} 24. h4 {[%emt 0:03:31]} f6 {[%emt 0:01:42]} 25. Bf5 {[%emt 0:04:00]} Qg7 {[%emt 0:00:19]} 26. Bxe6 {[%emt 0:00:46]} dxe6 {[%emt 0:00:07]} 27. Bf4 {[%emt 0:03:23]} Rd8 {[%emt 0:04:21]} 28. Qe2 {[%emt 0:02:44]} Qg4 {[%emt 0:01:55]} 29. c5 {[%emt 0:07:25]} b5 {[%emt 0:01:13]} 30. Qxg4 {[%emt 0:07:29]} Rxg4 {[%emt 0:00:09]} 31. Rd2 {[%emt 0:00:15]} Rxd2 {[%emt 0:01:44]} 32. Bxd2 {[%emt 0:00:53]} Rc4 {[%emt 0:03:00]} 33. Rxc4 {[%emt 0:00:53]} bxc4 {[%emt 0:00:05]} 34. Ke2 {[%emt 0:00:11]} Kf7 {[%emt 0:00:26]} 35. Ke3 {[%emt 0:00:35]} e5 {[%emt 0:00:18]} 36. Ba5 {[%emt 0:02:26]} f5 {[%emt 0:01:11]} 37. Bc7 {[%emt 0:00:19]} Ke6 {[%emt 0:00:31]} 38. Bd8 {[%emt 0:06:18]} Kd7 {[%emt 0:01:56]} 39. Ba5 {[%emt 0:00:09]} Bg2 {[%emt 0:01:02]} 40. Bc3 {[%emt 0:00:00]} Ke6 {[%emt 0:00:00]} 41. Kf2 {[%emt 0:02:08]} Bc6 {[%emt 0:01:22]} 42. Ke3 {[%emt 0:00:04]} Kd5 {[%emt 0:00:35]} 43. Bb4 {[%emt 0:01:09]} e6 {[%emt 0:00:36]} 44. Bc3 {[%emt 0:00:33]} Ba4 {[%emt 0:06:35]} 45. Bb4 {[%emt 0:01:36]} a6 {[%emt 0:03:19]} 46. Bc3 {[%emt 0:02:03]} Bc6 {[%emt 0:01:31]} 47. Bb4 {[%emt 0:00:08]} e4 {[%emt 0:03:06]} 48. Kf4 {[%emt 0:06:27]} Kd4 {[%emt 0:00:45]} 49. Kg5 {[%emt 0:00:18]} Be8 {[%emt 0:01:53]} 50. Kf6 {[%emt 0:01:03]} Kd5 {[%emt 0:00:49]} 51. Ke7 {[%emt 0:00:54]} Bc6 {[%emt 0:01:00]} 52. Kf6 {[%emt 0:03:24]} e3 {[%emt 0:01:43]} 53. Bc3 {[%emt 0:03:55]} Ba4 {[%emt 0:08:20]} 54. Bb4 {[%emt 0:02:29]} e2 {[%emt 0:05:46]} 55. Be1 {[%emt 0:02:55]} Kxc5 {[%emt 0:08:57]} 56. Kxe6 {[%emt 0:02:12]} Kd4 {[%emt 0:01:37]} 57. Kxf5 {[%emt 0:01:07]} Kd3 {[%emt 0:00:30]} 58. Kg5 {[%emt 0:07:03]} Be8 {[%emt 0:00:10]} 59. Kf4 {[%emt 0:01:01]} Kc2 {[%emt 0:00:18]} 60. Ke3 {[%emt 0:01:14]} Kxb2 {[%emt 0:01:26]} 61. Kxe2 {[%emt 0:00:41]} c3 {[%emt 0:00:17]} 62. Kd3 {[%emt 0:01:38]} c2 {[%emt 0:00:37]} 63. Bc3+ {[%emt 0:00:15]} Kb1 {[%emt 0:00:14]} 64. Bd2 {[%emt 0:00:16]} c1=Q {[%emt 0:00:10]} 65. Bxc1 {[%emt 0:00:07]} Kxc1 {[%emt 0:00:06]} 66. Kc3 {[%emt 0:00:12]} Kd1 {[%emt 0:00:17]} 67. Kd3 {[%emt 0:00:06]} Ke1 {[%emt 0:00:07]} 68. Ke3 {[%emt 0:00:06]} Bd7 {[%emt 0:00:44]} 69. Kf3 {[%emt 0:00:19]} Kf1 {[%emt 0:00:12]} 70. Kf4 {[%emt 0:00:13]} Kg2 {[%emt 0:00:24]} 71. Kg5 {[%emt 0:00:25]} Bg4 {[%emt 0:00:08]} 72. Kf4 {[%emt 0:00:07]} Kf2 {[%emt 0:00:08]} 73. Ke4 {[%emt 0:00:09]} Kxg3 {[%emt 0:00:08]} 74. Kd4 0-1

[Event "Polish Youth G18 Championship 2023"]
[Site "Jastrzebia Gora"]
[Date "2023.03.13"]
[Round "3.17"]
[White "Trybus, Dominika"]
[Black "Bauer, Marika"]
[Result "1-0"]
[ECO "C50"]
[WhiteElo "1543"]
[BlackElo "1183"]
[Annotator "NA RC COMBH"]
[PlyCount "117"]
[EventDate "2023.03.11"]
[EventType "swiss"]
[EventCountry "POL"]
[SourceTitle "playchess.com"]
[Source "ChessBase"]
[SourceQuality "1"]
[TimeControl "40/5400+30:1800+30"]

1. e4 e5 2. Bc4 Bc5 3. Nf3 Nc6 4. O-O Nf6 5. d3 h6 6. c3 d6 7. Nbd2 O-O 8. Re1 Be6 9. Bb5 a6 10. Ba4 Bb6 11. Nf1 Ne7 12. d4 exd4 13. cxd4 Ng6 14. Ng3 Bd7 15. Bc2 Re8 16. h4 Bg4 17. h5 Nxh5 18. Nxh5 Bxh5 19. Qd3 Qd7 20. Nh2 Nf8 21. Bd2 Bg6 22. d5 Qb5 23. Qxb5 axb5 24. Bd3 c6 25. dxc6 bxc6 26. Kf1 d5 27. f3 dxe4 28. Bxe4 Bxe4 29. Rxe4 Rxe4 30. fxe4 Ra4 31. e5 Re4 32. Re1 Rxe1+ 33. Kxe1 Bd4 34. Bc3 Bxc3+ 35. bxc3 Ng6 36. Nf3 Kf8 37. Kd2 Ke7 38. Ke3 Ke6 39. Ke4 Ne7 40. Nd4+ Kd7 41. a3 Nd5 42. Ne2 Ke6 43. Nd4+ Kd7 44. Nxb5 Ke7 45. c4 Nb6 46. Nd4 Nxc4 47. a4 Kd7 48. Nf5 g6 49. Nxh6 Ke6 50. Ng4 f6 51. exf6 Nd6+ 52. Kd4 Nb7 53. g3 g5 54. Kc4 Nd6+ 55. Kc5 Kd7 56. Ne5+ Ke6 57. f7 Ke7 58. f8=Q+ Kxf8 59. Kxd6 1-0

[Event "Polish Youth G18 Championship 2023"]
[Site "Jastrzebia Gora"]
[Date "2023.03.13"]
[Round "3.18"]
[White "Gornisiewicz, Natalia"]
[Black "Lopusiewicz, Marta"]
[Result "1-0"]
[ECO "A12"]
[WhiteElo "1287"]
[BlackElo "1180"]
[Annotator "NA RC COMBH"]
[PlyCount "73"]
[EventDate "2023.03.11"]
[EventType "swiss"]
[EventCountry "POL"]
[SourceTitle "playchess.com"]
[Source "ChessBase"]
[SourceQuality "1"]
[TimeControl "40/5400+30:1800+30"]

1. Nf3 {[%emt 0:00:05]} c6 {[%emt 0:00:22]} 2. c4 {[%emt 0:00:27]} d5 {[%emt 0:00:10]} 3. b3 {[%emt 0:01:13]} Bg4 {[%emt 0:02:30]} 4. e3 {[%emt 0:02:38]} Nf6 {[%emt 0:04:06]} 5. Be2 {[%emt 0:04:49]} Nbd7 {[%emt 0:03:01]} 6. d4 {[%emt 0:01:38]} e6 {[%emt 0:01:14]} 7. Bb2 {[%emt 0:02:27]} Bd6 {[%emt 0:04:09]} 8. Nbd2 {[%emt 0:02:21]} a5 {[%emt 0:07:37]} 9. O-O {[%emt 0:02:38]} b6 {[%emt 0:02:57]} 10. Rc1 {[%emt 0:02:06]} O-O {[%emt 0:03:39]} 11. Nh4 {[%emt 0:06:34]} Bxe2 {[%emt 0:03:34]} 12. Qxe2 {[%emt 0:00:08]} Ne4 {[%emt 0:07:21]} 13. Nhf3 {[%emt 0:01:48]} Ndf6 {[%emt 0:03:43]} 14. Nxe4 {[%emt 0:04:18]} Nxe4 {[%emt 0:00:16]} 15. Nd2 {[%emt 0:00:19]} Nxd2 {[%emt 0:00:47]} 16. Qxd2 {[%emt 0:00:08]} Qe7 {[%emt 0:00:44]} 17. Qc2 {[%emt 0:06:50]} c5 {[%emt 0:07:43]} 18. e4 {[%emt 0:04:02]} dxe4 {[%emt 0:02:13]} 19. Qxe4 {[%emt 0:00:09]} a4 {[%emt 0:07:14]} 20. Rc3 {[%emt 0:02:58]} f5 {[%emt 0:03:02]} 21. Qe3 {[%emt 0:02:24]} cxd4 {[%emt 0:01:53]} 22. Qxd4 {[%emt 0:00:22]} Bc5 {[%emt 0:00:09]} 23. Qe5 {[%emt 0:02:10]} Bd6 {[%emt 0:01:26]} 24. Qe2 {[%emt 0:01:02]} e5 {[%emt 0:00:43]} 25. Rd3 {[%emt 0:11:25]} e4 {[%emt 0:03:21]} 26. Rd5 {[%emt 0:00:56]} axb3 {[%emt 0:01:40]} 27. Rfd1 {[%emt 0:02:08]} Rad8 {[%emt 0:04:20]} 28. axb3 {[%emt 0:01:02]} f4 {[%emt 0:01:31]} 29. Qg4 {[%emt 0:03:02]} Rf7 {[%emt 0:05:29]} 30. Be5 {[%emt 0:03:50]} e3 {[%emt 0:04:17]} 31. Rxd6 {[%emt 0:03:57]} Rxd6 {[%emt 0:00:35]} 32. Bxd6 {[%emt 0:00:20]} Qf6 {[%emt 0:03:52]} 33. Qc8+ {[%emt 0:00:22]} Rf8 {[%emt 0:00:20]} 34. Qxf8+ {[%emt 0:00:06]} Qxf8 {[%emt 0:00:11]} 35. Bxf8 {[%emt 0:00:03]} Kxf8 {[%emt 0:00:05]} 36. fxe3 {[%emt 0:00:06]} fxe3 {[%emt 0:00:25]} 37. Re1 {[%emt 0:00:06]} 1-0

[Event "Polish Youth G18 Championship 2023"]
[Site "Jastrzebia Gora"]
[Date "2023.03.13"]
[Round "3.19"]
[White "Olszewska, Wiktoria"]
[Black "Nagly, Malgorzata"]
[Result "1-0"]
[ECO "C03"]
[WhiteElo "1287"]
[BlackElo "1041"]
[Annotator "NA RC COMBH"]
[PlyCount "50"]
[EventDate "2023.03.11"]
[EventType "swiss"]
[EventCountry "POL"]
[SourceTitle "playchess.com"]
[Source "ChessBase"]
[SourceQuality "1"]
[TimeControl "40/5400+30:1800+30"]

1. e4 {[%emt 0:00:02]} e6 {[%emt 0:00:01]} 2. d4 {[%emt 0:00:11]} d5 {[%emt 0:00:08]} 3. Nd2 {[%emt 0:00:10]} a6 {[%emt 0:00:12]} 4. Bd3 {[%emt 0:01:41]} c5 {[%emt 0:00:47]} 5. dxc5 {[%emt 0:04:55]} Bxc5 {[%emt 0:00:12]} 6. Ngf3 {[%emt 0:01:34]} Nc6 {[%emt 0:03:11]} 7. O-O {[%emt 0:06:43]} Nge7 {[%emt 0:05:13]} 8. Re1 {[%emt 0:06:03]} O-O {[%emt 0:04:59]} 9. Nb3 {[%emt 0:05:12]} Bb6 {[%emt 0:01:44]} 10. Ng5 {[%emt 0:04:48]} Ng6 {[%emt 0:12:01]} 11. Qh5 {[%emt 0:06:04]} h6 {[%emt 0:02:52]} 12. Nf3 {[%emt 0:03:57]} dxe4 {[%emt 0:12:26]} 13. Rxe4 {[%emt 0:05:19]} Qd5 {[%emt 0:18:57]} 14. Qxd5 {[%emt 0:06:53]} exd5 {[%emt 0:00:54]} 15. Re1 {[%emt 0:01:24]} Bg4 {[%emt 0:08:46]} 16. Be2 {[%emt 0:08:09]} Rfe8 {[%emt 0:05:32]} 17. Bd2 {[%emt 0:02:16]} Bf5 {[%emt 0:12:26]} 18. c4 {[%emt 0:02:35]} d4 {[%emt 0:03:33]} 19. c5 {[%emt 0:01:16]} d3 {[%emt 0:00:18]} 20. Bxd3 {[%emt 0:02:38]} Bxd3 {[%emt 0:03:34]} 21. cxb6 {[%emt 0:00:27]} Rad8 {[%emt 0:01:41]} 22. Nc5 {[%emt 0:01:46]} Re7 {[%emt 0:01:31]} 23. Rxe7 {[%emt 0:00:54]} Ngxe7 {[%emt 0:00:02]} 24. Nxb7 {[%emt 0:00:33]} Rb8 {[%emt 0:00:10]} 25. Nc5 {[%emt 0:00:43]} Bf5 1-0

[Event "Polish Youth G18 Championship 2023"]
[Site "Jastrzebia Gora"]
[Date "2023.03.13"]
[Round "3.20"]
[White "Pietruszka, Julia"]
[Black "Tittor, Weronika"]
[Result "1-0"]
[ECO "B27"]
[WhiteElo "1151"]
[BlackElo "1226"]
[Annotator "NA RC COMBH"]
[PlyCount "59"]
[EventDate "2023.03.11"]
[EventType "swiss"]
[EventCountry "POL"]
[SourceTitle "playchess.com"]
[Source "ChessBase"]
[SourceQuality "1"]
[TimeControl "40/5400+30:1800+30"]

1. e4 {[%emt 0:00:03]} c5 {[%emt 0:00:38]} 2. Nf3 {[%emt 0:00:08]} g6 {[%emt 0:00:13]} 3. d4 {[%emt 0:00:05]} cxd4 {[%emt 0:00:08]} 4. Nxd4 {[%emt 0:00:05]} Nc6 {[%emt 0:00:24]} 5. Be3 {[%emt 0:00:22]} Nf6 {[%emt 0:00:21]} 6. Nc3 {[%emt 0:03:14]} Bg7 {[%emt 0:00:19]} 7. Be2 {[%emt 0:04:34]} O-O {[%emt 0:00:15]} 8. O-O {[%emt 0:00:15]} d5 {[%emt 0:00:05]} 9. exd5 {[%emt 0:04:57]} Nb4 {[%emt 0:00:13]} 10. a3 {[%emt 0:04:06]} Nbxd5 {[%emt 0:00:20]} 11. Nxd5 {[%emt 0:01:53]} Nxd5 {[%emt 0:03:02]} 12. c3 {[%emt 0:04:37]} Nxe3 {[%emt 0:00:22]} 13. fxe3 {[%emt 0:00:09]} Qb6 {[%emt 0:03:59]} 14. b4 {[%emt 0:07:07]} e5 {[%emt 0:01:21]} 15. Nc2 {[%emt 0:05:23]} Bf5 {[%emt 0:00:40]} 16. Kh1 {[%emt 0:07:13]} Bxc2 {[%emt 0:00:51]} 17. Qxc2 {[%emt 0:00:08]} Qxe3 {[%emt 0:00:14]} 18. Rf3 {[%emt 0:01:28]} Qb6 {[%emt 0:00:47]} 19. Raf1 {[%emt 0:02:33]} Qe6 {[%emt 0:05:10]} 20. Qe4 {[%emt 0:03:50]} Rac8 {[%emt 0:04:02]} 21. Qxb7 {[%emt 0:05:43]} e4 {[%emt 0:02:03]} 22. Rxf7 {[%emt 0:10:05]} Bxc3 {[%emt 0:05:29]} 23. Rxf8+ {[%emt 0:00:54]} Rxf8 {[%emt 0:00:11]} 24. Rxf8+ {[%emt 0:00:16]} Kxf8 {[%emt 0:00:08]} 25. Qb8+ {[%emt 0:02:46]} Qe8 {[%emt 0:01:16]} 26. Qxa7 {[%emt 0:01:42]} Qf7 {[%emt 0:01:53]} 27. Qc5+ {[%emt 0:02:04]} Ke8 {[%emt 0:00:55]} 28. Bb5+ {[%emt 0:01:42]} Kd8 {[%emt 0:00:27]} 29. Qd6+ {[%emt 0:00:43]} Kc8 {[%emt 0:00:33]} 30. Ba6+ 1-0